fUSD/lending_fUSD_20251025
["ID","MTS","AMOUNT","RATE_DAILY","PERIOD"]
[392373259,1761407537614,-543.50401776,0.0003726,9]
[392373260,1761407537623,-534.68,0.0003726,9]
[392373261,1761407537632,-500.0,0.0003726,9]
[392373262,1761407537641,-500.0,0.0003726,9]
[392373263,1761407537651,-500.0,0.0003726,9]
[392373264,1761407537660,-500.0,0.0003726,9]
[392373265,1761407537669,-500.0,0.0003726,9]
[392373267,1761407537678,-500.0,0.0003726,9]
[392373268,1761407537687,-500.0,0.0003726,9]
[392373269,1761407537696,-500.0,0.0003726,9]
[392373270,1761407537705,-500.0,0.0003726,9]
[392373271,1761407537718,-500.0,0.0003726,9]
[392373272,1761407537727,-441.81819879,0.0003726,9]
[392373273,1761407537737,-500.0,0.0003726,9]
[392373274,1761407537746,-500.0,0.0003726,9]
[392373275,1761407537755,-502.39,0.0003726,9]
[392373276,1761407537764,-500.0,0.0003726,9]
[392373277,1761407537773,-500.0,0.0003726,9]
[392373278,1761407537783,-500.0,0.0003726,9]
[392373279,1761407537793,-500.0,0.0003726,9]
[392373280,1761407537802,-524.93,0.0003726,9]
[392373281,1761407537812,-500.0,0.0003726,9]
[392373282,1761407537821,-227.54913531,0.0003726,9]
[392373283,1761407537831,-537.16,0.0003726,9]
[392373284,1761407537840,-500.0,0.0003726,9]
[392373285,1761407537850,-555.59,0.0003726,9]
[392373286,1761407537860,-675.84,0.0003726,9]
[392373287,1761407537869,-166.60470406,0.0003726,9]
[392373288,1761407537879,-500.0,0.0003726,9]
[392373289,1761407537888,-500.0,0.0003726,9]
[392373290,1761407537897,-567.53,0.0003726,9]
[392373291,1761407537907,-500.0,0.0003726,9]
[392373292,1761407537920,-500.0,0.0003726,9]
[392373293,1761407537930,-500.0,0.0003726,9]
[392373294,1761407537939,-368.23072892,0.0003726,9]
[392373295,1761407537948,-442.34762614,0.0003726,9]
[392373296,1761407537958,-500.0,0.0003726,9]
[392373297,1761407538132,-1555.41,0.0003726,9]
[392373298,1761407538142,-709.21,0.0003726,9]
[392373299,1761407538152,-500.0,0.0003726,9]
[392373300,1761407538162,-500.0,0.0003726,9]
[392373301,1761407538171,-942.51,0.0003726,9]
[392373302,1761407538180,-226.72749581,0.0003726,9]
[392373303,1761407538189,-500.0,0.0003726,9]
[392373304,1761407538199,-15600.96,0.0003726,9]
[392373305,1761407538208,-2147.12,0.0003726,9]
[392373306,1761407538217,-500.0,0.0003726,9]
[392373307,1761407538227,-500.0,0.0003726,9]
[392373308,1761407538236,-602.26,0.0003726,9]
[392373309,1761407538246,-553.68,0.0003726,9]
[392373310,1761407538255,-500.0,0.0003726,9]
[392373311,1761407538268,-500.0,0.0003726,9]
[392373312,1761407538278,-500.0,0.0003726,9]
[392373313,1761407538287,-500.0,0.0003726,9]
[392373314,1761407538296,-500.0,0.0003726,9]
[392373315,1761407538307,-500.0,0.0003726,9]
[392373316,1761407538316,-1157.24,0.0003726,9]
[392373317,1761407538328,-899.55,0.0003726,9]
[392373318,1761407538337,-500.0,0.0003726,9]
[392373319,1761407538347,-500.0,0.0003726,9]
[392373320,1761407538357,-500.0,0.0003726,9]
[392373321,1761407538367,-500.0,0.0003726,9]
[392373322,1761407538376,-558.03,0.0003726,9]
[392373323,1761407538385,-657.01,0.0003726,9]
[392373324,1761407538394,-500.0,0.0003726,9]
[392373325,1761407538403,-500.0,0.0003726,9]
[392373326,1761407538413,-500.0,0.0003726,9]
[392373327,1761407538423,-599.46387269,0.0003726,9]
[392373328,1761407538432,-500.0,0.0003726,9]
[392373329,1761407538441,-500.0,0.0003726,9]
[392373330,1761407538451,-500.0,0.0003726,9]
[392373331,1761407538460,-500.0,0.0003726,9]
[392373332,1761407538473,-483.04822504,0.0003726,7]
[392373333,1761407538483,-500.0,0.0003726,9]
[392373334,1761407538492,-500.0,0.0003726,9]
[392373335,1761407538501,-500.0,0.0003726,9]
[392373336,1761407538511,-1103.76,0.0003726,9]
[392373337,1761407538520,-586.96,0.0003726,9]
[392373338,1761407538530,-677.29,0.0003726,9]
[392373339,1761407538539,-500.0,0.0003726,9]
[392373340,1761407538548,-500.0,0.0003726,9]
[392373341,1761407538557,-601.98,0.0003726,9]
[392373342,1761407538566,-27349.58,0.0003726,9]
[392373343,1761407538576,-755.77,0.0003726,9]
[392373344,1761407538586,-3162.18,0.0003726,9]
[392373345,1761407538595,-500.0,0.0003726,9]
[392373346,1761407538605,-541.75,0.0003726,9]
[392373347,1761407538614,-500.0,0.0003726,9]
[392373348,1761407538624,-500.0,0.0003726,9]
[392373349,1761407538633,-568.48,0.0003726,9]
[392373350,1761407538642,-793.74,0.0003726,9]
[392373351,1761407538652,-612.62,0.0003726,9]
[392373352,1761407538662,-580.5,0.0003726,9]
[392373353,1761407538671,-500.0,0.0003726,9]
[392373354,1761407538680,-500.0,0.0003726,9]
[392373355,1761407538690,-512.1,0.0003726,9]
[392373356,1761407538699,-555.07216357,0.0003726,9]
[392373357,1761407538709,-207.83206353,0.0003726,9]
[392373358,1761407538718,-500.0,0.0003726,9]
[392373359,1761407538728,-500.0,0.0003726,9]
[392373360,1761407538737,-500.0,0.0003726,9]
[392373361,1761407538746,-500.0,0.0003726,9]
[392373362,1761407538755,-500.0,0.0003726,9]
[392373363,1761407538764,-647.33,0.0003726,9]
[392373364,1761407538774,-601.16,0.0003726,9]
[392373365,1761407538783,-504.95,0.0003726,9]
[392373366,1761407538792,-2016.49,0.0003726,9]
[392373367,1761407538802,-500.0,0.0003726,9]
[392373368,1761407538811,-544.29,0.0003726,9]
[392373369,1761407538820,-500.0,0.0003726,9]
[392373370,1761407538829,-624.17,0.0003726,9]
[392373371,1761407538839,-500.0,0.0003726,9]
[392373372,1761407538849,-1578.34,0.0003726,9]
[392373373,1761407538868,-500.0,0.0003726,9]
[392373374,1761407538879,-1038.04,0.0003726,9]
[392373375,1761407538889,-500.0,0.0003726,9]
[392373376,1761407538899,-868.13,0.0003726,9]
[392373377,1761407538909,-500.0,0.0003726,9]
[392373378,1761407538919,-236.08085185,0.0003726,9]
[392373379,1761407538929,-917.77,0.0003726,9]
[392373380,1761407538939,-645.71,0.0003726,9]
[392373381,1761407538949,-890.81,0.0003726,9]
[392373382,1761407538959,-500.0,0.0003726,9]
[392373383,1761407538969,-215.27622039,0.0003726,9]
[392373384,1761407538979,-500.0,0.0003726,9]
[392373385,1761407538989,-543.66,0.0003726,9]
[392373386,1761407538999,-500.0,0.0003726,9]
[392373387,1761407539009,-500.0,0.0003726,9]
[392373388,1761407539018,-620.95,0.0003726,9]
[392373389,1761407539029,-501.95,0.0003726,9]
[392373390,1761407539039,-500.0,0.0003726,9]
[392373391,1761407539049,-500.0,0.0003726,9]
[392373392,1761407539058,-500.0,0.0003726,9]
[392373393,1761407539068,-500.0,0.0003726,9]
[392373394,1761407539078,-6415.98,0.0003726,9]
[392373395,1761407539087,-1885.41,0.0003726,9]
[392373396,1761407539097,-548.9,0.0003726,9]
[392373397,1761407539129,-500.0,0.0003726,9]
[392373398,1761407539149,-152.0,0.00037307,8]
[392373399,1761407539171,-200.0,0.00037341,2]
[392373400,1761407539191,-1000.0,0.00037341,7]
[392373401,1761407539210,-156.905914,0.00037534,9]
[392373402,1761407539230,-910.887729,0.00037534,9]
[392373403,1761407539251,-567.385756,0.00037534,9]
[392373404,1761407539271,-500.0,0.00037534,9]
[392373405,1761407539290,-500.0,0.00037534,9]
[392373406,1761407539311,-466.66996633,0.00037534,9]
[392373407,1761407539334,-500.0,0.00037534,9]
[392373408,1761407539349,-163.58709254,0.00037534,9]
[392373409,1761407539368,-781.72,0.00037534,9]
[392373410,1761407539382,-625.09,0.00037534,9]
[392373411,1761407539400,-500.0,0.00037534,9]
[392373412,1761407539419,-500.0,0.00037534,9]
[392373413,1761407539438,-500.0,0.00037534,9]
[392373414,1761407539456,-500.0,0.00037534,9]
[392373415,1761407539474,-500.0,0.00037534,9]
[392373416,1761407539491,-563.33,0.00037534,9]
[392373417,1761407539507,-425.73306829,0.00037534,9]
[392373418,1761407539523,-816.06,0.00037534,9]
[392373419,1761407539537,-500.0,0.00037534,9]
[392373420,1761407539554,-500.0,0.00037534,9]
[392373421,1761407539571,-457.49710675,0.00037534,9]
[392373422,1761407539587,-500.0,0.00037534,9]
[392373423,1761407539604,-589.76,0.00037534,9]
[392373424,1761407539621,-243.63108027,0.00037534,9]
[392373425,1761407539637,-648.01,0.00037534,9]
[392373426,1761407539653,-526.85,0.00037534,9]
[392373427,1761407539668,-627.18,0.00037534,9]
[392373428,1761407539682,-500.0,0.00037534,9]
[392373429,1761407539699,-414.02413489,0.00037534,9]
[392373430,1761407539716,-4318.47,0.00037534,2]
[392373431,1761407539730,-500.0,0.00037534,9]
[392373432,1761407539745,-500.0,0.00037534,9]
[392373433,1761407539760,-729.5,0.00037534,2]
[392373434,1761407539776,-386.50025369,0.00037534,9]
[392373435,1761407539791,-500.0,0.00037534,9]
[392373436,1761407539806,-500.0,0.00037534,9]
[392373437,1761407539821,-546.95,0.00037534,9]
[392373438,1761407539837,-500.0,0.00037534,9]
[392373439,1761407539852,-500.0,0.00037534,9]
[392373440,1761407539869,-500.0,0.00037534,9]
[392373441,1761407539883,-527.81,0.00037534,9]
[392373442,1761407539898,-512.17,0.00037534,9]
[392373443,1761407539913,-500.0,0.00037534,9]
[392373444,1761407539928,-534.68,0.00037534,9]
[392373445,1761407539943,-500.0,0.00037534,9]
[392373446,1761407539959,-500.0,0.00037534,9]
[392373447,1761407539976,-500.0,0.00037534,9]
[392373448,1761407539993,-538.49686115,0.00037534,9]
[392373449,1761407540015,-500.0,0.00037534,9]
[392373450,1761407540034,-500.0,0.00037534,9]
[392373451,1761407540048,-500.0,0.00037534,9]
[392373452,1761407540063,-500.0,0.00037534,9]
[392373453,1761407540079,-500.0,0.00037534,9]
[392373454,1761407540095,-500.0,0.00037534,9]
[392373455,1761407540110,-500.0,0.00037534,9]
[392373456,1761407540125,-500.0,0.00037534,9]
[392373457,1761407540140,-502.39,0.00037534,9]
[392373458,1761407540156,-500.0,0.00037534,9]
[392373459,1761407540173,-292.76,0.00037534,9]
[392373460,1761407540190,-455.21344618,0.00037534,9]
[392373461,1761407540206,-500.0,0.00037534,9]
[392373462,1761407540222,-524.93,0.00037534,9]
[392373463,1761407540238,-500.0,0.00037534,9]
[392373464,1761407540255,-537.16,0.00037534,9]
[392373465,1761407540271,-500.0,0.00037534,9]
[392373466,1761407540286,-555.59,0.00037534,9]
[392373467,1761407540301,-675.84,0.00037534,9]
[392373468,1761407540317,-613.76072604,0.00037534,9]
[392373469,1761407540335,-500.0,0.00037534,9]
[392373470,1761407540351,-567.53,0.00037534,9]
[392373471,1761407540366,-500.0,0.00037534,9]
[392373472,1761407540381,-500.0,0.00037534,9]
[392373473,1761407540397,-500.0,0.00037534,9]
[392373474,1761407540413,-619.1892201,0.00037534,9]
[392373475,1761407540429,-1555.41,0.00037534,9]
[392373476,1761407540443,-709.21,0.00037534,9]
[392373477,1761407540459,-500.0,0.00037534,9]
[392373478,1761407540475,-500.0,0.00037534,9]
[392373479,1761407540491,-500.0,0.00037534,9]
[392373480,1761407540505,-15600.96,0.00037534,9]
[392373481,1761407540520,-2147.12,0.00037534,9]
[392373482,1761407540536,-500.0,0.00037534,9]
[392373483,1761407540551,-500.0,0.00037534,9]
[392373484,1761407540566,-602.26,0.00037534,9]
[392373485,1761407540581,-553.68,0.00037534,9]
[392373486,1761407540596,-500.0,0.00037534,9]
[392373487,1761407540611,-500.0,0.00037534,9]
[392373488,1761407540626,-500.0,0.00037534,9]
[392373489,1761407540641,-500.0,0.00037534,9]
[392373490,1761407540655,-605.43834358,0.00037534,9]
[392373491,1761407540670,-500.0,0.00037534,9]
[392373492,1761407540686,-1157.24,0.00037534,9]
[392373493,1761407540701,-942.51,0.00037534,9]
[392373494,1761407540715,-899.55,0.00037534,9]
[392373495,1761407540733,-500.0,0.00037534,9]
[392373496,1761407540747,-500.0,0.00037534,9]
[392373497,1761407540766,-500.0,0.00037534,9]
[392373498,1761407540966,-500.0,0.00037534,9]
[392373499,1761407540975,-558.03,0.00037534,9]
[392373500,1761407540985,-657.01,0.00037534,9]
[392373501,1761407540994,-500.0,0.00037534,9]
[392373502,1761407541003,-500.0,0.00037534,9]
[392373503,1761407541012,-396.33037064,0.00037534,9]
[392373504,1761407541022,-500.0,0.00037534,9]
[392373505,1761407541032,-500.0,0.00037534,9]
[392373506,1761407541046,-500.0,0.00037534,9]
[392373507,1761407541056,-233.82834347,0.00037534,9]
[392373508,1761407541065,-500.0,0.00037534,9]
[392373509,1761407541074,-500.0,0.00037534,9]
[392373510,1761407541083,-500.0,0.00037534,9]
[392373511,1761407541093,-1103.76,0.00037534,9]
[392373512,1761407541102,-586.96,0.00037534,9]
[392373513,1761407541111,-677.29,0.00037534,9]
[392373514,1761407541121,-273.1747054,0.00037534,9]
[392373515,1761407541130,-500.0,0.00037534,9]
[392373516,1761407541139,-601.98,0.00037534,9]
[392373517,1761407541147,-27349.58,0.00037534,9]
[392373518,1761407541157,-755.77,0.00037534,9]
[392373519,1761407541167,-3162.18,0.00037534,9]
[392373520,1761407541176,-500.0,0.00037534,9]
[392373521,1761407541185,-541.75,0.00037534,9]
[392373522,1761407541195,-500.0,0.00037534,9]
[392373523,1761407541204,-556.43081283,0.00037534,9]
[392373524,1761407541213,-568.48,0.00037534,9]
[392373525,1761407541223,-793.74,0.00037534,9]
[392373526,1761407541232,-612.62,0.00037534,9]
[392373527,1761407541242,-580.5,0.00037534,9]
[392373528,1761407541251,-500.0,0.00037534,9]
[392373529,1761407541260,-500.0,0.00037534,9]
[392373530,1761407541269,-512.1,0.00037534,9]
[392373531,1761407541279,-500.0,0.00037534,9]
[392373532,1761407541287,-500.0,0.00037534,9]
[392373533,1761407541297,-500.0,0.00037534,9]
[392373534,1761407541306,-500.0,0.00037534,9]
[392373535,1761407541315,-647.33,0.00037534,9]
[392373536,1761407541324,-500.0,0.00037534,9]
[392373537,1761407541333,-601.16,0.00037534,9]
[392373538,1761407541342,-504.95,0.00037534,9]
[392373539,1761407541352,-2016.49,0.00037534,9]
[392373540,1761407541361,-500.0,0.00037534,9]
[392373541,1761407541370,-544.29,0.00037534,9]
[392373542,1761407541379,-500.0,0.00037534,9]
[392373543,1761407541388,-624.17,0.00037534,9]
[392373544,1761407541398,-500.0,0.00037534,9]
[392373545,1761407541407,-1578.34,0.00037534,9]
[392373546,1761407541417,-381.95965988,0.00037534,9]
[392373547,1761407541426,-1038.04,0.00037534,9]
[392373548,1761407541436,-500.0,0.00037534,9]
[392373549,1761407541445,-868.13,0.00037534,9]
[392373550,1761407541454,-500.0,0.00037534,9]
[392373551,1761407541464,-917.77,0.00037534,9]
[392373552,1761407541474,-645.71,0.00037534,9]
[392373553,1761407541483,-500.0,0.00037534,9]
[392373554,1761407541492,-890.81,0.00037534,9]
[392373555,1761407541501,-500.0,0.00037534,9]
[392373556,1761407541510,-543.66,0.00037534,9]
[392373557,1761407541520,-500.0,0.00037534,9]
[392373558,1761407541529,-500.0,0.00037534,9]
[392373559,1761407541539,-620.95,0.00037534,9]
[392373560,1761407541548,-501.95,0.00037534,9]
[392373561,1761407541558,-500.0,0.00037534,9]
[392373562,1761407541567,-500.0,0.00037534,9]
[392373563,1761407541576,-500.0,0.00037534,9]
[392373564,1761407541586,-500.0,0.00037534,9]
[392373565,1761407541596,-6415.98,0.00037534,9]
[392373566,1761407541606,-1885.41,0.00037534,9]
[392373567,1761407541616,-548.9,0.00037534,9]
[392373568,1761407541625,-500.0,0.00037534,9]
[392373569,1761407541635,-813.82214,0.0003756,2]
[392373570,1761407541644,-165.821,0.0003761,7]
[392373571,1761407541655,-165.821,0.0003761,7]
[392373572,1761407541664,-165.821,0.0003761,7]
[392373573,1761407541675,-165.821,0.0003761,7]
[392373574,1761407541685,-165.821,0.0003761,7]
[392373575,1761407541695,-200.0,0.00037714,2]
[392373576,1761407541704,-204.34227883,0.00037789,2]
[392373577,1761407541714,-165.33770568,0.00037808,9]
[392373578,1761407541725,-500.0,0.00037808,9]
[392373579,1761407541735,-500.0,0.00037808,9]
[392373580,1761407541745,-781.72,0.00037808,9]
[392373581,1761407541754,-625.09,0.00037808,9]
[392373582,1761407541763,-500.0,0.00037808,9]
[392373583,1761407541773,-500.0,0.00037808,9]
[392373584,1761407541783,-464.20117598,0.00037808,9]
[392373585,1761407541793,-500.0,0.00037808,9]
[392373586,1761407541802,-500.0,0.00037808,9]
[392373587,1761407541811,-563.33,0.00037808,9]
[392373588,1761407541821,-816.06,0.00037808,9]
[392373589,1761407541831,-388.88261547,0.00037808,9]
[392373590,1761407541841,-500.0,0.00037808,9]
[392373591,1761407541850,-463.44304746,0.00037808,9]
[392373592,1761407541859,-589.76,0.00037808,9]
[392373593,1761407541869,-648.01,0.00037808,9]
[392373594,1761407541879,-526.85,0.00037808,9]
[392373595,1761407541888,-627.18,0.00037808,9]
[392373596,1761407541898,-399.10126563,0.00037808,9]
[392373597,1761407541907,-4318.47,0.00037808,2]
[392373598,1761407541916,-500.0,0.00037808,9]
[392373599,1761407541925,-500.0,0.00037808,9]
[392373600,1761407541934,-729.5,0.00037808,2]
[392373601,1761407541944,-500.0,0.00037808,9]
[392373602,1761407541954,-500.0,0.00037808,9]
[392373603,1761407541963,-546.95,0.00037808,9]
[392373604,1761407541974,-500.0,0.00037808,9]
[392373605,1761407541984,-500.0,0.00037808,9]
[392373606,1761407541995,-190.87760929,0.00037808,9]
[392373607,1761407542004,-527.81,0.00037808,9]
[392373608,1761407542016,-512.17,0.00037808,9]
[392373609,1761407542025,-500.0,0.00037808,9]
[392373610,1761407542034,-534.68,0.00037808,9]
[392373611,1761407542045,-500.0,0.00037808,9]
[392373612,1761407542056,-500.0,0.00037808,9]
[392373613,1761407542067,-154.93551558,0.00037808,9]
[392373614,1761407542078,-500.0,0.00037808,9]
[392373615,1761407542089,-500.0,0.00037808,9]
[392373616,1761407542099,-500.0,0.00037808,9]
[392373617,1761407542110,-500.0,0.00037808,9]
[392373618,1761407542119,-611.53541191,0.00037808,9]
[392373619,1761407542130,-500.0,0.00037808,9]
[392373620,1761407542140,-500.0,0.00037808,9]
[392373621,1761407542151,-388.40754038,0.00037808,9]
[392373622,1761407542160,-502.39,0.00037808,9]
[392373623,1761407542169,-500.0,0.00037808,9]
[392373624,1761407542181,-500.0,0.00037808,9]
[392373625,1761407542190,-524.93,0.00037808,9]
[392373626,1761407542200,-500.0,0.00037808,9]
[392373627,1761407542209,-537.16,0.00037808,9]
[392373628,1761407542219,-500.0,0.00037808,9]
[392373629,1761407542230,-555.59,0.00037808,9]
[392373630,1761407542241,-675.84,0.00037808,9]
[392373631,1761407542252,-500.0,0.00037808,9]
[392373632,1761407542264,-567.53,0.00037808,9]
[392373633,1761407542274,-646.15863323,0.00037808,9]
[392373634,1761407542284,-278.67773169,0.00037808,9]
[392373635,1761407542293,-500.0,0.00037808,9]
[392373636,1761407542304,-1555.41,0.00037808,9]
[392373637,1761407542313,-709.21,0.00037808,9]
[392373638,1761407542324,-500.0,0.00037808,9]
[392373639,1761407542336,-500.0,0.00037808,9]
[392373640,1761407542347,-500.0,0.00037808,9]
[392373641,1761407542356,-15600.96,0.00037808,9]
[392373642,1761407542367,-2147.12,0.00037808,9]
[392373643,1761407542376,-616.44133359,0.00037808,9]
[392373644,1761407542386,-500.0,0.00037808,9]
[392373645,1761407542395,-602.26,0.00037808,9]
[392373646,1761407542408,-553.68,0.00037808,9]
[392373647,1761407542417,-500.0,0.00037808,9]
[392373648,1761407542427,-500.0,0.00037808,9]
[392373649,1761407542437,-500.0,0.00037808,9]
[392373650,1761407542446,-500.0,0.00037808,9]
[392373651,1761407542456,-500.0,0.00037808,9]
[392373652,1761407542465,-942.51,0.00037808,9]
[392373653,1761407542476,-1157.24,0.00037808,9]
[392373654,1761407542485,-899.55,0.00037808,9]
[392373655,1761407542495,-374.51299918,0.00037808,9]
[392373656,1761407542506,-500.0,0.00037808,9]
[392373657,1761407542517,-500.0,0.00037808,9]
[392373658,1761407542528,-500.0,0.00037808,9]
[392373659,1761407542537,-558.03,0.00037808,9]
[392373660,1761407542548,-475.62305247,0.00037808,9]
[392373661,1761407542557,-657.01,0.00037808,9]
[392373662,1761407542567,-500.0,0.00037808,9]
[392373663,1761407542577,-500.0,0.00037808,9]
[392373664,1761407542586,-500.0,0.00037808,9]
[392373665,1761407542595,-500.0,0.00037808,9]
[392373666,1761407542606,-500.0,0.00037808,9]
[392373667,1761407542615,-500.0,0.00037808,9]
[392373668,1761407542625,-500.0,0.00037808,9]
[392373669,1761407542635,-1103.76,0.00037808,9]
[392373670,1761407542646,-586.96,0.00037808,9]
[392373671,1761407542656,-677.29,0.00037808,9]
[392373672,1761407542666,-500.0,0.00037808,9]
[392373673,1761407542675,-601.98,0.00037808,9]
[392373674,1761407542685,-27349.58,0.00037808,9]
[392373675,1761407542694,-755.77,0.00037808,9]
[392373676,1761407542704,-3162.18,0.00037808,9]
[392373677,1761407542713,-500.0,0.00037808,9]
[392373678,1761407542723,-541.75,0.00037808,9]
[392373679,1761407542732,-500.0,0.00037808,9]
[392373680,1761407542741,-568.48,0.00037808,9]
[392373681,1761407542751,-793.74,0.00037808,9]
[392373682,1761407542761,-612.62,0.00037808,9]
[392373683,1761407542771,-580.5,0.00037808,9]
[392373684,1761407542781,-500.0,0.00037808,9]
[392373685,1761407542791,-500.0,0.00037808,9]
[392373686,1761407542800,-512.1,0.00037808,9]
[392373687,1761407542809,-500.0,0.00037808,9]
[392373688,1761407542819,-500.0,0.00037808,9]
[392373689,1761407542828,-500.0,0.00037808,9]
[392373690,1761407542837,-500.0,0.00037808,9]
[392373691,1761407542846,-647.33,0.00037808,9]
[392373692,1761407542856,-500.0,0.00037808,9]
[392373693,1761407542865,-601.16,0.00037808,9]
[392373694,1761407542874,-504.95,0.00037808,9]
[392373695,1761407542884,-2016.49,0.00037808,9]
[392373696,1761407542894,-500.0,0.00037808,9]
[392373697,1761407542903,-544.29,0.00037808,9]
[392373698,1761407542912,-624.17,0.00037808,9]
[392373699,1761407542922,-500.0,0.00037808,9]
[392373700,1761407542931,-500.0,0.00037808,9]
[392373701,1761407542940,-1578.34,0.00037808,9]
[392373702,1761407542950,-1038.04,0.00037808,9]
[392373703,1761407542959,-500.0,0.00037808,9]
[392373704,1761407542968,-868.13,0.00037808,9]
[392373705,1761407542977,-500.0,0.00037808,9]
[392373706,1761407542987,-917.77,0.00037808,9]
[392373707,1761407542997,-645.71,0.00037808,9]
[392373708,1761407543007,-535.9365891,0.00037808,9]
[392373709,1761407543016,-890.81,0.00037808,9]
[392373710,1761407543026,-500.0,0.00037808,9]
[392373711,1761407543036,-543.66,0.00037808,9]
[392373712,1761407543046,-500.0,0.00037808,9]
[392373713,1761407543055,-500.0,0.00037808,9]
[392373714,1761407543065,-620.95,0.00037808,9]
[392373715,1761407543075,-501.95,0.00037808,9]
[392373716,1761407543084,-500.0,0.00037808,9]
[392373717,1761407543095,-500.0,0.00037808,9]
[392373718,1761407543104,-451.64142467,0.00037808,9]
[392373719,1761407543113,-500.0,0.00037808,9]
[392373720,1761407543123,-6415.98,0.00037808,9]
[392373721,1761407543132,-1885.41,0.00037808,9]
[392373722,1761407543142,-548.9,0.00037808,9]
[392373723,1761407543152,-500.0,0.00037808,9]
[392373724,1761407543162,-2054.0,0.00037962,2]
[392373725,1761407543172,-819.0,0.00037962,2]
[392373726,1761407543181,-572.0,0.00037962,2]
[392373727,1761407543191,-3414.0,0.00037962,2]
[392373728,1761407543200,-1592.0,0.00037962,2]
[392373729,1761407543209,-1312.0,0.00037962,2]
[392373730,1761407543220,-606.0,0.00037962,2]
[392373731,1761407543228,-818.0,0.00037962,2]
[392373732,1761407543238,-1270.0,0.00037962,2]
[392373733,1761407543247,-6583.0,0.00037962,2]
[392373734,1761407543256,-3488.0,0.00037962,2]
[392373735,1761407543266,-6458.0,0.00037962,2]
[392373736,1761407543275,-558.0,0.00037962,2]
[392373737,1761407543284,-700.0,0.0003797,2]
[392373738,1761407543293,-804.70728964,0.00037977,2]
[392373739,1761407543303,-5000.0,0.00038,5]
[392373740,1761407543312,-295.0,0.00038,7]
[392373741,1761407543321,-151.0,0.00038,7]
[392373742,1761407543331,-300.0,0.00038,2]
[392373743,1761407543340,-60000.0,0.00038,18]
[392373744,1761407543349,-200.861236,0.00038,2]
[392373745,1761407543359,-1007.71527643,0.00038,7]
[392373746,1761407543368,-500.0,0.00038013,120]
[392373747,1761407543377,-1200.0,0.00038045,7]
[392373748,1761407543386,-500.0,0.00038045,7]
[392373749,1761407543396,-813.82215,0.0003806,2]
[392373750,1761407543405,-500.0,0.00038082,9]
[392373751,1761407543415,-500.0,0.00038082,9]
[392373752,1761407543425,-781.72,0.00038082,9]
[392373753,1761407543434,-625.09,0.00038082,9]
[392373754,1761407543444,-411.25952333,0.00038082,9]
[392373755,1761407543453,-202.13206581,0.00038082,9]
[392373756,1761407543462,-500.0,0.00038082,9]
[392373757,1761407543472,-563.33,0.00038082,9]
[392373758,1761407543481,-816.06,0.00038082,9]
[392373759,1761407543491,-500.0,0.00038082,9]